lending/lending_fUSD_20260306
["ID","MTS","AMOUNT","RATE_DAILY","PERIOD"]
[407802266,1772809839520,-494.64624274,0.00016721,2]
[407802267,1772809839530,-1000.0,0.00016721,2]
[407802268,1772809839540,-1000.0,0.00016721,2]
[407802269,1772809839549,-1000.0,0.00016721,2]
[407802270,1772809839560,-1000.0,0.00016721,2]
[407802271,1772809839570,-1000.0,0.00016721,2]
[407802273,1772809839581,-1000.0,0.00016721,2]
[407802275,1772809839590,-1000.0,0.00016721,2]
[407802277,1772809839599,-191.47,0.00016838,2]
[407802278,1772809839610,-1500.0,0.00016868,2]
[407802279,1772809839619,-2453.94666279,0.00016924,2]
[407802280,1772809839628,-166.66,0.00016928,2]
[407802281,1772809839638,-682.34,0.00016999,2]
[407802282,1772809839647,-176122.29016172,0.00017,2]
[407802283,1772809839657,-300.0,0.00017,2]
[407802284,1772809839666,-490.7231731,0.0001711,2]
[407802285,1772809839676,-9718.90833483,0.00017122,2]
[407802286,1772809839685,-199.85560761,0.00017122,2]
[407802287,1772809839695,-11305.69546236,0.00017122,2]
[407802288,1772809839707,-1489.71509886,0.00017268,2]
[407802289,1772809839717,-1500.0,0.00017268,2]
[407802290,1772809839727,-1134.58548457,0.00017268,2]
[407802291,1772809839736,-1000.0,0.00017268,2]
[407802293,1772809839746,-1500.0,0.00017268,2]
[407802295,1772809839755,-1500.0,0.00017268,2]
[407802296,1772809839765,-1000.0,0.00017268,2]
[407802297,1772809839775,-1500.0,0.00017268,2]
[407802298,1772809839784,-1000.0,0.00017268,2]
[407802299,1772809839794,-1500.0,0.00017268,2]
[407802300,1772809839803,-746.50799756,0.000174,2]
[407802301,1772809839813,-2000.0,0.00017416,2]
[407802302,1772809839823,-166.66,0.00017437,2]
[407802303,1772809839833,-2000.23,0.0001751,7]
[407802304,1772809839844,-172.74325605,0.0001751,7]
[407802305,1772809839857,-2453.94666279,0.00017519,2]
[407802306,1772809839867,-9718.90833483,0.00017585,2]
[407802307,1772809839877,-587.0,0.00017605,2]
[407802308,1772809839887,-191.47,0.0001764,2]
[407802309,1772809839896,-2351.0,0.00017773,2]
[407802310,1772809839907,-800.0,0.00017808,2]
[407802311,1772809839917,-2000.0,0.00017816,2]
[407802312,1772809839926,-2046.47179689,0.00017816,2]
[407802313,1772809839936,-2000.0,0.00017816,2]
[407802314,1772809839945,-2000.0,0.00017816,2]
[407802315,1772809839959,-1278.57186039,0.00017816,2]
[407802316,1772809839969,-199.85560761,0.00017817,2]
[407802317,1772809839979,-866.0,0.00017839,2]
[407802318,1772809839989,-599.09196005,0.00017867,2]
[407802319,1772809839999,-166.66,0.00017945,2]
[407802320,1772809840008,-2500.0,0.00017964,2]
[407802321,1772809840018,-594.77135874,0.00017967,2]
[407802322,1772809840027,-1253.62107363,0.00017967,2]
[407802323,1772809840036,-1817.24072096,0.00017967,2]
[407802324,1772809840046,-12798.57558659,0.0001799,2]
[407802325,1772809840055,-2616.78948015,0.00018,2]
[407802326,1772809840065,-182.80013699,0.00018,2]
[407802327,1772809840075,-1500.18,0.00018035,7]
[407802328,1772809840085,-9718.90833483,0.00018048,2]
[407802329,1772809840094,-248.0,0.00018068,2]
[407802330,1772809840104,-2453.94666279,0.00018114,2]
[407802331,1772809840114,-746.50799756,0.00018233,2]
[407802332,1772809840123,-2500.0,0.00018364,2]
[407802333,1772809840133,-2500.0,0.00018364,2]
[407802334,1772809840142,-2500.0,0.00018364,2]
[407802335,1772809840152,-191.47,0.00018442,2]
[407802336,1772809840161,-6385.088854,0.00018488,7]
[407802337,1772809840172,-9718.90833483,0.00018511,2]
[407802338,1772809840182,-199.85560761,0.00018511,2]
[407802339,1772809840192,-3000.0,0.00018512,2]
[407802340,1772809840205,-1000.12,0.00018561,7]
[407802341,1772809840215,-1000.0,0.00018827,2]
[407802342,1772809840224,-3000.0,0.00018912,2]
[407802343,1772809840234,-168.0,0.00018958,2]
[407802344,1772809840251,-168.0,0.00018961,2]
[407802345,1772809840266,-9718.90833483,0.00018974,2]
[407802346,1772809840276,-2623.68709664,0.00019,2]
[407802347,1772809840287,-360.39836175,0.0001901,7]
[407802348,1772809840297,-500.0,0.0001906,2]
[407802349,1772809840307,-746.50799756,0.00019067,2]
[407802350,1772809840317,-648.0,0.00019141,2]
[407802351,1772809840330,-3000.0,0.00019178,2]
[407802352,1772809840339,-3000.0,0.00019178,7]
[407802353,1772809840349,-199.85560761,0.00019206,2]
[407802354,1772809840359,-191.47,0.00019243,2]
[407802355,1772809840368,-823.0,0.00019273,2]
[407802356,1772809840377,-200.0,0.00019408,2]
[407802357,1772809840387,-9718.90833483,0.00019437,2]
[407802358,1772809840397,-500.0,0.0001946,2]
[407802360,1772809840406,-168.0,0.00019473,2]
[407802362,1772809840416,-541.0,0.0001955,2]
[407802364,1772809840426,-355.08533532,0.0001989,2]
[407802365,1772809840437,-5800.0,0.00019892,2]
[407802366,1772809840447,-5800.0,0.000199,2]
[407802367,1772809840459,-599.09196005,0.000199,2]
[407802368,1772809840468,-25000.0,0.000199,3]
[407802369,1772809840478,-9718.90833483,0.000199,2]
[407802370,1772809840487,-1058.11044493,0.000199,2]
[407802371,1772809840497,-157.40983265,0.000199,2]
[407802372,1772809840506,-594.77135874,0.000199,2]
[407802373,1772809840516,-1253.62107363,0.000199,2]
[407802374,1772809840526,-746.50799756,0.000199,2]
[407802375,1772809840888,-199.85560761,0.000199,2]
[407802376,1772809840902,-172.74325605,0.000199,3]
[407802377,1772809840912,-1817.24072096,0.000199,2]
[407802378,1772809840921,-11842.22879035,0.0001995,15]
[407802379,1772809840930,-172.74325605,0.00019962,2]
[407802380,1772809840940,-160.0,0.00019962,2]
[407802381,1772809840950,-119258.6679168,0.0001998,2]
[407802382,1772809840961,-355.08533532,0.0001999,2]
[407802383,1772809840971,-151.0,0.00019997,2]
[407802384,1772809840980,-300.0,0.00019999,2]
[407802385,1772809840989,-666.0,0.00019999,2]
[407802386,1772809841000,-4731730.73889393,0.0002,2]
[407802387,1772809841027,-479.7404258,0.0002,2]
[407802388,1772809841040,-52410.29675761,0.0002,2]
[407802389,1772809841076,-12371.88192344,0.0002,2]
[407802390,1772809841388,-5715007.18556347,0.0002,2]
[407802391,1772809841447,-11305.69546236,0.00017585,2]
[407802392,1772809841459,-2381.10453766,0.0002,2]
[407802393,1772809841471,-278.08599999,0.0002,2]
[407802394,1772809841505,-2453.94666279,0.00018709,2]
[407802395,1772809841514,-207321.4271652,0.0002,2]
[407802396,1772809841526,-30193.68137495,0.0002,2]
[407802407,1772809842921,-3049.3,0.0002,2]
[407802408,1772809844307,-284.57,0.00015613,2]
[407802410,1772809844318,-284.57,0.00015613,2]
[407802411,1772809844333,-218.23,0.0001642,2]
[407802412,1772809844344,-4144.81473207,0.0002,2]
[407802449,1772809850854,-11305.69546236,0.00018048,2]
[407802450,1772809850864,-2453.94666279,0.00019305,2]
[407802451,1772809850873,-497277.37606801,0.0002,2]
[407802452,1772809850889,-29564.45475349,0.0002,2]
[407802453,1772809850900,-42395.71474031,0.0002,2]
[407802454,1772809850936,-685.56,0.0002,2]
[407802455,1772809850952,-20746.18880124,0.0002,2]
[407802456,1772809851027,-798.620787,0.0002,2]
[407802457,1772809886104,500.0,0.00014567,2]
[407802458,1772809935985,221.80014401,0.0001142,2]
[407802459,1772809936017,278.19985599,0.0001142,2]
[407802460,1772809936652,988.28459692,0.0001142,2]
[407802461,1772809940312,500.0,0.0001142,2]
[407802462,1772809940978,500.0,0.0001142,2]
[407802463,1772809941454,500.0,9.63e-05,2]
[407802464,1772809944240,748.97625172,0.0001142,2]
[407802465,1772809944877,500.0,0.0001142,2]
[407802466,1772809947939,500.0,0.0001142,2]
[407802467,1772809949661,467.88207617,0.0001142,2]
[407802477,1772810108363,3259.6,0.0001449,2]
[407802480,1772810206789,166.66,0.0001415,2]
[407802481,1772810206952,166.66,0.00014448,2]
[407802485,1772810537718,2181.01,0.00011507,2]
[407802486,1772810609482,567.0,0.0001342,2]
[407802487,1772810617591,35054.43000001,0.0001449,2]
[407802488,1772810618507,1500.0,0.00014076,2]
[407802489,1772810728836,14546.17,0.00014017,2]
[407802490,1772810743135,-1200.0,0.00014506,2]
[407802491,1772810743156,-300.0,0.00014506,2]
[407802492,1772810743179,-300.0,0.00014506,2]
[407802493,1772810743200,-300.0,0.00014506,2]
[407802494,1772810743220,-659.55938844,0.00014506,2]
[407802495,1772810797098,-171.05983478,0.00014506,2]
[407802496,1772810854096,-500.0,0.00014506,2]
[407802497,1772810854118,-203.71480102,0.00014506,2]
[407802498,1772810854520,-685.84288026,0.00014506,2]
[407802499,1772810983497,947.54,0.00013975,2]
[407802500,1772811007326,263.25608342,0.00014406,2]
[407802504,1772811031672,-355.08533532,0.00014497,2]
[407802505,1772811031683,-383.0,0.00014506,2]
[407802507,1772811031692,-1200.0,0.00014506,2]
[407802508,1772811031701,-300.0,0.00014506,2]
[407802509,1772811031712,-270.0,0.00014506,2]
[407802510,1772811031720,-600.0,0.00014506,2]
[407802511,1772811031732,-600.0,0.00014506,2]
[407802512,1772811031741,-250.0,0.00014506,2]
[407802513,1772811031751,-300.0,0.00014506,2]
[407802514,1772811031760,-178.93204733,0.00014506,2]
[407802515,1772811031770,-300.0,0.00014507,2]
[407802516,1772811031780,-200.0,0.00014507,2]
[407802517,1772811031789,-505.78261735,0.00014507,2]
[407802518,1772811031804,-1175.98808265,0.00014507,2]
[407802519,1772811031814,-2500.0,0.00014507,2]
[407802520,1772811031824,-3148.98896674,0.00014507,2]
[407802521,1772811031836,-112.32333326,0.00014507,2]
[407802522,1772811031846,-64701.11963751,0.00014507,2]
[407802523,1772811031857,-2835.76559525,0.00014507,2]
[407802524,1772811031868,-355.00000001,0.00014507,2]
[407802526,1772811031902,-4850.0,0.00014507,2]
[407802534,1772811037829,-6187.95,0.00014507,2]
[407802535,1772811037930,-324.27,0.00014507,2]
[407802536,1772811038029,-2420745.89476723,0.00014507,2]
[407802537,1772811038038,-152.98792199,0.00014514,2]
[407802538,1772811038049,-2348.05020497,0.00014534,2]
[407802539,1772811038058,-790.24070377,0.00014534,2]
[407802540,1772811038067,-500.0,0.00014606,2]
[407802541,1772811038078,-500.0,0.00014606,2]
[407802542,1772811038088,-150.0,0.00014606,2]
[407802543,1772811038099,-1000.0,0.00014606,2]
[407802544,1772811038107,-500.0,0.00014606,2]
[407802545,1772811038117,-315.86799927,0.00014606,2]
[407802546,1772811038127,-291029.34,0.00014607,2]
[407802547,1772811038136,-151.0,0.00014634,2]
[407802549,1772811038145,-500.0,0.00014673,2]
[407802551,1772811038154,-500.0,0.00014673,2]
[407802553,1772811038163,-372.24433971,0.00014673,2]
[407802556,1772811038173,-500.0,0.00014673,2]
[407802558,1772811038182,-500.0,0.00014673,2]
[407802561,1772811038191,-500.0,0.00014673,2]
[407802563,1772811038200,-166.66,0.00014746,2]
[407802564,1772811038210,-210.33,0.00014912,2]
[407802566,1772811038219,-166.66,0.00015044,2]
[407802568,1772811038228,-336.0,0.00015144,2]
[407802570,1772811038238,-253.0,0.00015162,2]
[407802572,1772811038247,-831.33890918,0.000152,2]
[407802574,1772811038256,-1935.18210503,0.000152,2]
[407802576,1772811038266,-2003.272626,0.000152,2]
[407802578,1772811038275,-2136.6803585,0.000152,2]
[407802580,1772811038284,-2338.17861204,0.000152,2]
[407802582,1772811038293,-236.83242527,0.000152,2]
[407802584,1772811038303,-392.26901653,0.000152,2]
[407802586,1772811038312,-424.98358956,0.000152,2]
[407802588,1772811038321,-427.65810053,0.000152,2]
[407802590,1772811038331,-9711.35565343,0.00015201,2]
[407802592,1772811038340,-500.0,0.00015221,2]
[407802593,1772811038351,-1000.0,0.00015221,2]
[407802595,1772811038361,-5000.0,0.00015287,2]
[407802597,1772811038370,-2348.05020495,0.00015301,2]
[407802599,1772811038380,-166.66,0.00015342,2]
[407802601,1772811038389,-500.0,0.00015359,2]
[407802603,1772811038398,-150.0,0.00015359,2]
[407802605,1772811038408,-599.09196006,0.00015372,2]
[407802607,1772811038417,-1253.62107365,0.00015372,2]
[407802608,1772811038427,-594.77135875,0.00015372,2]
[407802610,1772811038436,-746.5079976,0.00015372,2]
[407802612,1772811038445,-157.40983265,0.00015372,2]
[407802614,1772811038454,-500.0,0.00015373,2]
[407802616,1772811038463,-500.0,0.00015373,2]
[407802618,1772811038472,-500.0,0.00015373,2]
[407802620,1772811038482,-500.0,0.00015373,2]
[407802621,1772811038491,-500.0,0.00015373,2]
[407802623,1772811038500,-500.0,0.00015373,2]
[407802625,1772811038509,-500.0,0.00015373,2]
[407802627,1772811038518,-500.0,0.00015373,2]
[407802628,1772811038528,-500.0,0.00015373,2]
[407802629,1772811038537,-500.0,0.00015373,2]
[407802630,1772811038546,-500.0,0.00015373,2]
[407802631,1772811038555,-500.0,0.00015373,2]
[407802632,1772811038564,-449.5306254,0.00015373,2]
[407802633,1772811038574,-556.1229892,0.00015373,2]
[407802634,1772811038583,-500.0,0.00015373,2]
[407802635,1772811038592,-530.88059829,0.00015373,2]
[407802636,1772811038607,-500.0,0.00015377,2]
[407802637,1772811038617,-500.0,0.00015377,2]
[407802638,1772811038627,-500.0,0.00015377,2]
[407802639,1772811038635,-500.0,0.00015377,2]
[407802640,1772811038646,-500.0,0.00015377,2]
[407802641,1772811038655,-500.0,0.00015377,2]
[407802642,1772811038665,-500.0,0.00015377,2]
[407802643,1772811038674,-500.0,0.00015377,2]
[407802644,1772811038685,-500.0,0.00015377,2]
[407802645,1772811038694,-500.0,0.00015377,2]
[407802646,1772811038703,-500.0,0.00015377,2]
[407802647,1772811038712,-500.0,0.00015377,2]
[407802648,1772811038721,-500.0,0.00015377,2]
[407802649,1772811038732,-500.0,0.00015377,2]
[407802650,1772811038742,-500.0,0.00015377,2]
[407802651,1772811038754,-500.0,0.00015377,2]
[407802652,1772811038763,-500.0,0.00015377,2]
[407802653,1772811038772,-500.0,0.00015377,2]
[407802654,1772811038782,-500.0,0.00015377,2]
[407802655,1772811038791,-500.0,0.00015377,2]
[407802656,1772811038800,-500.0,0.00015377,2]
[407802657,1772811038810,-500.0,0.00015377,2]
[407802658,1772811038823,-151.0,0.00015377,2]
[407802659,1772811038833,-151.0,0.00015377,2]
[407802660,1772811038842,-151.0,0.00015377,2]
[407802661,1772811038851,-151.0,0.00015377,2]
[407802662,1772811038861,-151.0,0.00015377,2]
[407802663,1772811038870,-151.0,0.00015377,2]
[407802664,1772811038879,-151.0,0.00015377,2]
[407802665,1772811038889,-151.0,0.00015377,2]
[407802666,1772811038899,-200.0,0.00015377,2]
[407802667,1772811038908,-151.0,0.00015377,2]
[407802668,1772811038917,-151.0,0.00015377,2]
[407802669,1772811038926,-151.0,0.00015377,2]
[407802670,1772811038935,-251.3544907,0.00015377,2]
[407802671,1772811038944,-547.44319518,0.00015377,2]
[407802672,1772811038954,-151.0,0.00015377,2]
[407802673,1772811038963,-151.0,0.00015377,2]
[407802674,1772811038974,-151.0,0.00015377,2]
[407802675,1772811038984,-151.0,0.00015377,2]
[407802676,1772811038994,-151.0,0.00015377,2]
[407802677,1772811039004,-151.0,0.00015377,2]
[407802678,1772811039014,-151.0,0.00015377,2]
[407802679,1772811039023,-151.0,0.00015377,2]
[407802680,1772811039032,-151.0,0.00015377,2]
[407802681,1772811039042,-151.0,0.00015377,2]
[407802682,1772811039051,-151.0,0.00015377,2]
[407802683,1772811039060,-151.0,0.00015377,2]
[407802684,1772811039070,-151.0,0.00015377,2]
[407802685,1772811039080,-151.0,0.00015377,2]
[407802686,1772811039090,-151.0,0.00015377,2]
[407802687,1772811039099,-151.0,0.00015377,2]
[407802688,1772811039108,-151.0,0.00015377,2]
[407802689,1772811039118,-151.0,0.00015377,2]
[407802690,1772811039128,-198.53487061,0.00015377,2]
[407802691,1772811039137,-151.0,0.00015384,2]
[407802692,1772811039147,-521.28575476,0.00015386,2]
[407802693,1772811039157,-174.8442503,0.00015386,2]
[407802694,1772811039167,-500.0,0.00015386,2]
[407802695,1772811039176,-505.94888931,0.00015386,2]
[407802696,1772811039186,-1130.67785308,0.00015386,5]
[407802697,1772811039196,-1130.67785308,0.00015386,5]
[407802698,1772811039205,-500.0,0.00015386,2]
[407802699,1772811039215,-500.0,0.00015386,2]
[407802700,1772811039224,-598.33174267,0.00015386,2]
[407802701,1772811039235,-500.0,0.00015386,2]
[407802702,1772811039245,-500.0,0.00015386,2]
[407802703,1772811039254,-500.0,0.00015386,2]
[407802704,1772811039264,-500.0,0.00015386,2]
[407802705,1772811039274,-500.0,0.00015386,2]
[407802706,1772811039284,-500.0,0.00015386,2]
[407802707,1772811039294,-500.0,0.00015386,2]
[407802708,1772811039304,-150.0,0.00015386,2]
[407802709,1772811039314,-500.0,0.00015386,2]
[407802710,1772811039324,-500.0,0.00015386,2]
[407802711,1772811039334,-500.0,0.00015386,2]
[407802712,1772811039343,-500.0,0.00015386,2]
[407802713,1772811039352,-500.0,0.00015386,2]
[407802714,1772811039362,-500.0,0.00015386,2]
[407802715,1772811039371,-500.0,0.00015386,2]
[407802716,1772811039380,-500.0,0.00015386,2]
[407802717,1772811039390,-500.0,0.00015386,2]
[407802718,1772811039399,-389.89566096,0.00015386,2]
[407802719,1772811039409,-500.0,0.00015386,2]
[407802720,1772811039419,-506.10912482,0.00015386,2]
[407802721,1772811039428,-500.0,0.00015386,2]
[407802722,1772811039438,-500.0,0.00015386,2]
[407802723,1772811039447,-500.0,0.00015386,2]
[407802724,1772811039457,-500.0,0.00015386,2]
[407802725,1772811039467,-500.0,0.00015386,2]
[407802726,1772811039476,-500.0,0.00015386,2]
[407802727,1772811039490,-500.0,0.00015386,2]
[407802728,1772811039500,-500.0,0.00015386,2]
[407802729,1772811039509,-500.0,0.00015386,2]
[407802730,1772811039519,-500.0,0.00015386,2]
[407802731,1772811039529,-200.0,0.0001545,2]
[407802732,1772811039539,-730.3,0.00015471,2]
[407802733,1772811039548,-1094.27,0.000155,2]
[407802734,1772811039559,-500.0,0.00015633,2]
[407802735,1772811039568,-166.66,0.0001564,2]
[407802736,1772811039578,-500.0,0.00015699,2]
[407802737,1772811039587,-6001.0737,0.000157,2]
[407802739,1772811039598,-1000.0,0.000157,2]
[407802740,1772811039610,-2000.0,0.0001572,2]
[407802741,1772811039620,-9711.35565334,0.00015723,2]
[407802742,1772811039630,-255.0,0.00015731,2]
[407802743,1772811039642,-1500.0,0.00015768,2]
[407802744,1772811039655,-500.0,0.00015799,2]
[407802745,1772811039665,-500.0,0.00015799,2]
[407802746,1772811039675,-500.0,0.00015799,2]
[407802747,1772811039690,-500.0,0.00015799,2]
[407802748,1772811039699,-500.0,0.00015799,2]
[407802749,1772811039709,-500.0,0.00015799,2]
[407802750,1772811039718,-500.0,0.00015799,2]
[407802751,1772811039728,-500.0,0.00015799,2]
[407802752,1772811039739,-500.0,0.00015799,2]
[407802753,1772811039748,-500.0,0.00015799,2]
[407802754,1772811039758,-500.0,0.00015799,2]
[407802755,1772811039767,-500.0,0.00015799,2]
[407802756,1772811039777,-500.9565902,0.00015799,2]
[407802757,1772811039786,-500.0,0.00015799,2]
[407802758,1772811039795,-500.0,0.00015799,2]
[407802759,1772811039805,-500.0,0.00015799,2]
[407802760,1772811039814,-500.0,0.00015799,2]
[407802761,1772811039824,-500.0,0.00015799,2]
[407802762,1772811039833,-500.0,0.00015799,2]
[407802763,1772811039843,-500.0,0.00015799,2]
[407802764,1772811039852,-500.0,0.00015799,2]
[407802765,1772811039863,-500.0,0.00015799,2]
[407802766,1772811039872,-500.0,0.00015799,2]
[407802767,1772811039882,-500.0,0.00015799,2]
[407802768,1772811039891,-500.0,0.00015799,2]
[407802770,1772811039900,-500.0,0.00015799,2]
[407802771,1772811039910,-500.0,0.00015799,2]
[407802773,1772811039919,-500.0,0.00015799,2]
[407802775,1772811039929,-512.9597754,0.00015799,2]
[407802776,1772811039939,-500.0,0.00015799,2]
[407802777,1772811039950,-500.0,0.00015799,2]
[407802778,1772811039960,-500.0,0.00015799,2]
[407802779,1772811039970,-500.0,0.00015799,2]
[407802780,1772811039979,-500.0,0.00015799,2]
[407802781,1772811039992,-500.0,0.00015799,2]
[407802782,1772811040001,-500.0,0.00015799,2]
[407802783,1772811040011,-500.0,0.00015799,2]
[407802784,1772811040021,-500.0,0.00015799,2]
[407802785,1772811040031,-500.0,0.00015799,2]
[407802786,1772811040040,-2000.0,0.0001582,2]
[407802787,1772811040050,-286.0,0.00015884,2]
[407802788,1772811040059,-150.0,0.000159,2]
[407802789,1772811040069,-150.0,0.000159,2]
[407802790,1772811040079,-150.0,0.000159,2]
[407802791,1772811040089,-429.40616332,0.00015907,2]
[407802792,1772811040098,-2000.0,0.0001592,2]
[407802793,1772811040108,-1000.0,0.00015921,2]
[407802794,1772811040118,-1000.0,0.00015921,2]
[407802795,1772811040128,-705.88057451,0.00015921,2]
[407802796,1772811040139,-1000.0,0.00015921,2]
[407802797,1772811040148,-1000.0,0.00015921,2]
[407802798,1772811040158,-494.64624274,0.00015921,2]
[407802799,1772811040168,-500.0,0.00015921,2]
[407802800,1772811040178,-1000.0,0.00015921,2]
[407802801,1772811040188,-1000.0,0.00015921,2]
[407802802,1772811040198,-1000.0,0.00015921,2]
[407802803,1772811040207,-1000.0,0.00015921,2]
[407802804,1772811040217,-1000.0,0.00015921,2]
[407802805,1772811040226,-200.0,0.00015925,2]
[407802806,1772811040238,-150.0,0.00015927,2]
[407802807,1772811040248,-300.0,0.00015957,2]
[407802808,1772811040258,-300.27779023,0.00015957,2]
[407802809,1772811040267,-150.0,0.00015957,2]
[407802810,1772811040277,-3763.80067527,0.00015957,2]
[407802811,1772811040287,-500.0,0.00015957,2]
[407802812,1772811040296,-600.0,0.00015957,2]
[407802813,1772811040306,-600.0,0.00015957,2]
[407802814,1772811040316,-600.0,0.00015957,2]
[407802815,1772811040326,-250.0,0.00015957,2]
[407802816,1772811040339,-300.0,0.00015957,2]
[407802817,1772811040349,-200.0,0.00015957,2]
[407802818,1772811040358,-1680.0,0.00015957,2]
[407802819,1772811040367,-258.69744367,0.0001596,2]
[407802820,1772811040378,-2000.0,0.0001602,2]
[407802821,1772811040387,-2348.05020495,0.00016067,2]
[407802822,1772811040397,-2000.0,0.0001612,2]
[407802823,1772811040406,-500.0,0.00016122,2]
[407802824,1772811040416,-500.0,0.00016122,2]
[407802825,1772811040426,-500.0,0.00016122,2]
[407802826,1772811040435,-707.0,0.00016146,2]
[407802827,1772811040446,-500.0,0.00016146,2]
[407802828,1772811040455,-999.0,0.00016146,2]
[407802829,1772811040465,-500.0,0.00016146,2]
[407802830,1772811040476,-150.0,0.00016146,2]
[407802831,1772811040488,-964.0,0.00016146,2]
[407802832,1772811040497,-150.0,0.00016146,2]
[407802833,1772811040507,-500.0,0.00016146,2]
[407802834,1772811040516,-150.0,0.00016146,2]
[407802835,1772811040525,-1262.0,0.00016146,2]
[407802837,1772811040535,-597.0,0.00016146,2]
[407802838,1772811040545,-150.0,0.00016146,2]
[407802839,1772811040554,-500.0,0.00016146,2]
[407802840,1772811040564,-150.0,0.00016146,2]
[407802841,1772811040574,-150.0,0.00016146,2]
[407802842,1772811040585,-539.0,0.00016146,2]
[407802843,1772811040597,-566.0,0.00016146,2]
[407802844,1772811040612,-500.0,0.00016146,2]
[407802845,1772811040623,-1254.0,0.00016146,2]
[407802846,1772811040634,-150.0,0.00016146,2]
[407802847,1772811040643,-500.0,0.00016146,2]
[407802848,1772811040653,-500.0,0.00016146,2]
[407802849,1772811040664,-150.0,0.00016146,2]
[407802850,1772811040673,-500.0,0.00016146,2]
[407802851,1772811040683,-500.0,0.00016146,2]
[407802852,1772811040693,-502.0,0.00016146,2]
[407802853,1772811040703,-150.0,0.00016146,2]
[407802854,1772811040712,-500.0,0.00016146,2]
[407802855,1772811040721,-1339.0,0.00016146,2]
[407802856,1772811040733,-500.0,0.00016146,2]
[407802857,1772811040743,-500.0,0.00016146,2]
[407802858,1772811040753,-500.0,0.00016146,2]
[407802859,1772811040762,-150.0,0.00016146,2]
[407802860,1772811040771,-500.0,0.00016199,2]
[407802861,1772811040782,-2000.0,0.0001622,2]
[407802862,1772811040792,-9711.35565334,0.00016245,2]
[407802863,1772811040803,-150.0,0.00016255,30]
[407802864,1772811040814,-746.50799756,0.00016278,2]
[407802865,1772811040825,-2000.0,0.00016316,2]
[407802866,1772811040835,-2000.0,0.0001632,2]
[407802867,1772811040845,-707.0,0.0001642,2]
[407802868,1772811040854,-500.0,0.0001642,2]
[407802869,1772811040863,-999.0,0.0001642,2]
[407802870,1772811040872,-500.0,0.0001642,2]
[407802871,1772811040881,-150.0,0.0001642,2]
[407802872,1772811040891,-964.0,0.0001642,2]
[407802873,1772811040900,-150.0,0.0001642,2]
[407802874,1772811040910,-500.0,0.0001642,2]
[407802875,1772811040920,-150.0,0.0001642,2]
[407802876,1772811040929,-1262.0,0.0001642,2]
[407802877,1772811040938,-597.0,0.0001642,2]
[407802878,1772811040947,-150.0,0.0001642,2]
[407802879,1772811040957,-500.0,0.0001642,2]
[407802880,1772811040966,-539.0,0.0001642,2]
[407802881,1772811040975,-566.0,0.0001642,2]
[407802882,1772811040985,-500.0,0.0001642,2]
[407802883,1772811040995,-1254.0,0.0001642,2]
[407802884,1772811041004,-500.0,0.0001642,2]
[407802885,1772811041013,-500.0,0.0001642,2]
[407802886,1772811041022,-500.0,0.0001642,2]
[407802887,1772811041031,-500.0,0.0001642,2]
[407802888,1772811041042,-502.0,0.0001642,2]
[407802889,1772811041051,-150.0,0.0001642,2]
[407802890,1772811041060,-500.0,0.0001642,2]